[Event "CIS Master Groups 2024"]
[Site "Vasto"]
[Date "2024.04.11"]
[Round "5.15"]
[White "Bettalli, Francesco"]
[Black "Cappelletto, Joshuaede"]
[Result "1/2-1/2"]
[ECO "B82"]
[WhiteElo "2309"]
[BlackElo "2306"]
[Annotator "TA"]
[PlyCount "59"]
[EventDate "2024.04.07"]
[EventType "team-tourn"]
[EventCountry "ITA"]
[SourceTitle "playchess.com"]
[Source "ChessBase"]
[SourceQuality "1"]
[TimeControl "40/5400+30:900+30"]

{[%evp 17,59,32,43,11,27,0,14,0,0,0,0,0,0,-7,-14,-14,5,7,29,28,33,31,27,25,35,30,34,36,18,19,29,33,47,14,21,13,17,8,9,2,1,1,8,0]} 1. e4 {[%emt 0:00:01]} c5 {[%emt 0:03:22]} 2. Nf3 {[%emt 0:00:08]} e6 {[%emt 0:00:15]} 3. d4 {[%emt 0:00:11]} cxd4 {[%emt 0:00:06]} 4. Nxd4 {[%emt 0:00:07]} Nc6 {[%emt 0:00:04]} 5. Nc3 {[%emt 0:00:07]} Qc7 {[%emt 0:00:06]} 6. Be3 {[%emt 0:00:20]} a6 {[%emt 0:00:06]} 7. a3 {[%emt 0:00:12]} Nf6 {[%emt 0:01:22]} 8. f4 {[%emt 0:01:11]} d6 {[%emt 0:04:03]} 9. Qf3 {[%emt 0:08:48]} Be7 {[%emt 0:04:15]} 10. h3 {[%emt 0:11:25]} O-O {[%emt 0:07:20]} 11. Be2 {[%emt 0:00:19]} Bd7 {[%emt 0:07:53][%cal Bc8d7,Bd7c6,Bc6e4][%mdl 32]} 12. O-O {[%emt 0:03:07]} e5 {[%emt 0:05:31]} 13. Nb3 {[%emt 0:02:36]} exf4 {[%emt 0:01:29]} 14. Bxf4 {[%emt 0:00:45]} Ne5 {[%emt 0:04:57]} 15. Qe3 {[%emt 0:03:04]} Rfe8 {[%emt 0:09:22]} 16. Bg5 {[%emt 0:06:04]} Bc6 {[%emt 0:04:02][%cal Of6e4]} 17. Nd4 {[%emt 0:11:02] Black should prevent Bxf6.} Nxe4 {[%emt 0:07:41]} 18. Nxe4 {[%emt 0:00:04]} Bxe4 {[%emt 0:03:00]} 19. Bxe7 {[%emt 0:03:33]} Rxe7 {[%emt 0:00:06]} 20. Qxe4 {[%emt 0:11:42] Strongly threatening Nf5.} Nc6 {[%emt 0:00:12] [#]} 21. Rxf7 $1 {[%emt 0:04:23]} Rxf7 {[%emt 0:05:09]} (21... Kxf7 22. Qd5+ (22. Qxh7 Nxd4 23. Rf1+ Ke6 $11) 22... Kf8 23. Rf1+ Rf7 24. Ne6+ Kg8 25. Nxc7 Raf8 26. Rxf7 (26. Qxd6 b5 $18) 26... Rxf7 27. Qxd6 (27. Na8 Ne7 $18)) 22. Bc4 {[%emt 0:00:31]} Nxd4 {[%emt 0:02:46]} 23. Bxf7+ {[%emt 0:00:22]} Qxf7 {[%emt 0:01:48]} (23... Kxf7 {feels hotter.} 24. Rf1+ Kg8 25. Qd5+ Kh8) 24. Qxd4 $14 {[%emt 0:00:04][%mdl 4096] Endgame. KQR-KQR} Qc7 {[%emt 0:08:14][%cal Oc7c5]} 25. c3 {[%emt 0:05:13]} Qc5 {[%emt 0:00:56] The position is equal.} 26. Rd1 {[%emt 0:00:14]} Re8 {[%emt 0:02:16]} 27. Qxc5 {[%emt 0:05:34]} dxc5 {[%emt 0:00:05]} 28. Rd7 {[%emt 0:00:03]} b5 {[%emt 0:00:07]} 29. Kf2 {[%emt 0:00:28]} Re6 {[%emt 0:01:19] Repels Rd6} 30. Rc7 {[%emt 0:01:25] Weighted Error Value: White=0.07 (flawless) /Black=0.07 (flawless) .  Inaccurate:     	White=2     	---        OK:         	White=9     	Black=7      Best:        	---       	Black=1} 1/2-1/2

[Event "CIS Master Groups 2024"]
[Site "Vasto"]
[Date "2024.04.11"]
[Round "5.16"]
[White "Simonetto, Andrea"]
[Black "Pescatore, Lorenzo"]
[Result "1/2-1/2"]
[ECO "B30"]
[WhiteElo "2277"]
[BlackElo "2358"]
[Annotator "TA"]
[PlyCount "73"]
[EventDate "2024.04.07"]
[EventType "team-tourn"]
[EventCountry "ITA"]
[SourceTitle "playchess.com"]
[Source "ChessBase"]
[SourceQuality "1"]
[TimeControl "40/5400+30:900+30"]

{[%evp 11,73,37,35,19,34,35,22,4,19,15,19,22,27,14,19,4,18,10,10,14,20,18,20,16,19,0,0,0,0,0,0,0,0,0,0,0,0,0,0,-4,0,0,0,0,0,-6,0,0,0,0,0,-17,-23,-27,0,0,0,0,0,0,0,0,0,0]} 1. e4 {[%emt 0:00:04]} c5 {[%emt 0:00:33]} 2. Nf3 {[%emt 0:00:04]} Nc6 {[%emt 0:00:07]} 3. Bb5 {[%emt 0:00:05]} Nf6 {[%emt 0:01:51]} 4. Nc3 {[%emt 0:00:06]} Qc7 {[%emt 0:00:52]} 5. O-O {[%emt 0:05:09]} Nd4 {[%emt 0:02:05]} 6. Re1 {[%emt 0:14:25]} a6 {[%emt 0:03:03]} 7. Bf1 {[%emt 0:01:46]} d6 {[%emt 0:01:15]} 8. Nxd4 {[%emt 0:07:15]} cxd4 {[%emt 0:00:09]} 9. Nd5 {[%emt 0:00:04]} Nxd5 {[%emt 0:02:39]} 10. exd5 {[%emt 0:00:02]} g6 {[%emt 0:00:12]} 11. c4 {[%emt 0:04:33]} Bg7 {[%emt 0:01:19]} 12. d3 {[%emt 0:02:20]} O-O {[%emt 0:01:12]} 13. Bg5 {[%emt 0:04:25]} e5 {[%emt 0:00:13]} 14. dxe6 {[%emt 0:00:07]} fxe6 {[%emt 0:00:08]} 15. Be2 {[%emt 0:00:53]} Bd7 {[%emt 0:03:21]} 16. Bg4 {[%emt 0:09:01]} Rae8 {[%emt 0:03:21]} 17. b4 {[%emt 0:02:11]} h5 {[%emt 0:21:23]} 18. Bh3 {[%emt 0:03:52]} e5 {[%emt 0:01:29]} 19. Bxd7 {[%emt 0:01:50]} Qxd7 {[%emt 0:00:07]} 20. Rc1 {[%emt 0:04:50]} Qf5 {[%emt 0:12:10][%csl LRf2,LRg5]} 21. Qd2 {[%emt 0:00:18]} e4 {[%emt 0:04:12]} 22. dxe4 {[%emt 0:03:22]} Rxe4 {[%emt 0:02:00]} 23. Rxe4 {[%emt 0:03:13]} Qxe4 {[%emt 0:00:06]} 24. Bh6 {[%emt 0:09:19]} Bxh6 {[%emt 0:23:22]} 25. Qxh6 $11 {[%emt 0:00:08][%mdl 4096] Endgame. KQR-KQR} Rc8 {[%emt 0:02:37][%cal Oc8c4]} 26. h3 {[%emt 0:01:27]} d3 {[%emt 0:04:05][%cal Og8f7]} 27. f3 {[%emt 0:06:06]} Qe6 {[%emt 0:02:00]} 28. Qf4 {[%emt 0:06:31]} b5 {[%emt 0:01:12]} 29. c5 {[%emt 0:01:56]} dxc5 {[%emt 0:00:17]} (29... Qxa2 $2 {is the wrong capture.} 30. Qxd6 (30. cxd6 $2 Rxc1+ 31. Qxc1 d2 $19) 30... Qf7 31. Rd1 $18 (31. Qxa6 Rd8 $16) (31. Qxd3 Qf6 $18)) 30. bxc5 {[%emt 0:00:12]} Rd8 {[%emt 0:05:26][%cal Od3d2] [#] aiming for ...d2!} 31. Rd1 {[%emt 0:02:04]} Rd5 {[%emt 0:02:16][%cal Oe6e7]} 32. Kh2 {[%emt 0:01:04]} Kh7 {[%emt 0:00:44]} 33. c6 {[%emt 0:02:12] The position is equal.} Qxc6 {[%emt 0:00:25]} 34. Qf7+ {[%emt 0:00:04]} Kh6 {[%emt 0:00:08] And now ...Qd6+ would win.} 35. Qf8+ {[%emt 0:00:04]} Kh7 {[%emt 0:00:04] [#] Hoping for ...Qc7+.} 36. Qf7+ {[%emt 0:00:01]} Kh6 {[%emt 0:00:09] ...Qd6+ is the strong threat.} 37. Qf8+ {[%emt 0:00:03] An interesting draw.   Weighted Error Value: White=0.03 (flawless) /Black=0.03 (flawless) .  Inaccurate:     	---       	Black=1      OK:         	White=15    	Black=12     Best:        	White=2     	Black=3} 1/2-1/2

[Event "CIS Master Groups 2024"]
[Site "Vasto"]
[Date "2024.04.11"]
[Round "5.17"]
[White "Stella, Andrea"]
[Black "Socko, Bartosz"]
[Result "1/2-1/2"]
[ECO "A50"]
[WhiteElo "2403"]
[BlackElo "2565"]
[Annotator "TA"]
[PlyCount "30"]
[EventDate "2024.04.07"]
[EventType "team-tourn"]
[EventCountry "ITA"]
[SourceTitle "playchess.com"]
[Source "ChessBase"]
[SourceQuality "1"]
[TimeControl "40/5400+30:900+30"]

{[%evp 11,30,5,18,2,12,8,5,8,8,13,16,13,10,-19,-19,-19,-12,-17,0,0,0]} 1. d4 {[%emt 0:14:52][%cal Bd2d4,Bd4d5][%mdl 32]} e6 {[%emt 0:00:05]} 2. c4 {[%emt 0:00:28]} b6 {[%emt 0:00:05]} 3. a3 {[%emt 0:02:12]} Bb7 {[%emt 0:00:15]} 4. Nc3 {[%emt 0:00:05]} Nf6 {[%emt 0:00:11]} 5. d5 {[%emt 0:01:53]} Bd6 {[%emt 0:00:06]} 6. Nf3 {[%emt 0:00:24]} O-O {[%emt 0:00:25] The position is equal.} 7. g3 {[%emt 0:04:23]} c6 {[%emt 0:00:32][%cal Rc6d5]} 8. Bg2 {[%emt 0:03:00]} cxd5 {[%emt 0:00:22]} 9. cxd5 {[%emt 0:01:17]} Nxd5 {[%emt 0:00:43]} 10. Nxd5 {[%emt 0:00:15]} exd5 {[%emt 0:00:16]} (10... Bxd5 $2 {is the wrong capture.} 11. e4 $18) 11. O-O {[%emt 0:02:16]} Na6 {[%emt 0:02:14][%cal Bb8a6,Ba6c7,Bc7d5][%mdl 32]} 12. Nh4 {[%emt 0:10:03]} Nc7 {[%emt 0:01:49]} 13. Nf5 {[%emt 0:02:16]} Be5 {[%emt 0:00:50]} 14. Ne3 {[%emt 0:00:40]} Re8 {[%emt 0:04:27]} 15. Nxd5 {[%emt 0:00:35]} Nxd5 {[%emt 0:01:42] Not much happened in this game.   Weighted Error Value: White=0.06 (flawless) /Black=0.02 (flawless) .  Inaccurate:     	White=1     	---        OK:         	White=5     	Black=4} 1/2-1/2

[Event "CIS Master Groups 2024"]
[Site "Vasto"]
[Date "2024.04.11"]
[Round "5.18"]
[White "Rombaldoni, Denis"]
[Black "Dardha, Daniel"]
[Result "0-1"]
[ECO "D00"]
[WhiteElo "2484"]
[BlackElo "2630"]
[Annotator "TA"]
[PlyCount "90"]
[EventDate "2024.04.07"]
[EventType "team-tourn"]
[EventCountry "ITA"]
[SourceTitle "playchess.com"]
[Source "ChessBase"]
[SourceQuality "1"]
[TimeControl "40/5400+30:900+30"]

{[%evp 9,90,-21,-12,-16,-21,-16,0,0,-4,-14,0,0,0,-25,0,0,0,-38,-27,-29,-41,-28,-43,-78,-24,-66,-20,-62,-22,-36,0,-110,-106,-103,-120,-153,-145,-199,-194,-191,-225,-241,-209,-289,-281,-309,-298,-291,-291,-290,-253,-264,-265,-247,-244,-268,-267,-289,-280,-264,-268,-406,-377,-1043,-1003,-921,-1019,-1006,-991,-975,-922,-940,-898,-910,-445,-5506,-29970,-5904,-4902,-29974,-29974,-29987,-29988]} 1. d4 {[%emt 0:00:03]} d5 {[%emt 0:14:27]} 2. Bg5 {[%emt 0:01:35]} h6 {[%emt 0:01:52]} 3. Bh4 {[%emt 0:00:21]} c5 {[%emt 0:00:33]} 4. e3 {[%emt 0:00:35]} Nc6 {[%emt 0:00:49]} 5. Nc3 {[%emt 0:05:37]} Nf6 {[%emt 0:07:14]} 6. Bxf6 {[%emt 0:01:08]} gxf6 {[%emt 0:02:49]} 7. Qh5 {[%emt 0:02:36]} cxd4 {[%emt 0:04:56]} 8. exd4 {[%emt 0:00:03] The position is equal.} e6 {[%emt 0:02:40]} 9. Bb5 {[%emt 0:16:29]} a6 {[%emt 0:03:22]} 10. Bxc6+ {[%emt 0:01:54]} bxc6 {[%emt 0:00:10]} 11. Nge2 {[%emt 0:01:01]} Rb8 {[%emt 0:01:11]} 12. b3 {[%emt 0:04:43]} f5 {[%emt 0:04:36]} 13. O-O {[%emt 0:02:51]} Qg5 {[%emt 0:00:53]} 14. Qf3 {[%emt 0:00:39]} Bd6 {[%emt 0:03:16]} 15. Na4 {[%emt 0:06:07]} Rg8 {[%emt 0:06:53]} 16. h3 {[%emt 0:05:43]} Kf8 {[%emt 0:04:48]} (16... f6 $17 {And now ...Kf7 would win.} 17. g3 Bd7) 17. c4 {[%emt 0:07:01]} a5 $40 {[%emt 0:03:32][%mdl 128] Black mounts an attack.} (17... Qh4 $15) 18. Rfc1 {[%emt 0:10:03]} Ba6 {[%emt 0:11:15] Black has more active pieces.} 19. Rc2 {[%emt 0:00:27]} Rb4 {[%emt 0:02:23][%cal Rd5c4]} 20. Rd1 {[%emt 0:04:31] [#]} (20. Nb2 $1 $11) 20... Bxc4 $1 $17 {[%emt 0:02:41][%mdl 512] Black converts the advantage convincingly.} 21. bxc4 {[%emt 0:06:51]} Rxa4 {[%emt 0:00:05]} 22. c5 {[%emt 0:00:21]} Bc7 {[%emt 0:00:49][%cal Oa4a3]} 23. Rb1 {[%emt 0:00:35] [#]} (23. Kf1 $17 {was necessary.}) 23... Ra3 $3 $19 {[%emt 0:01:55][%mdl 512]} 24. Rc3 {[%emt 0:02:27]} Rxa2 {[%emt 0:04:31]} 25. g3 {[%emt 0:00:56]} Qd2 {[%emt 0:01:35]} 26. Re3 {[%emt 0:00:02]} Kg7 {[%emt 0:02:29]} 27. Rb7 {[%emt 0:00:43]} Qd1+ {[%emt 0:00:36]} 28. Kh2 {[%emt 0:00:22]} Rc8 {[%emt 0:01:10]} 29. Ra7 {[%emt 0:03:31]} a4 {[%emt 0:01:22]} 30. Nc3 {[%emt 0:00:28]} Qxf3 {[%emt 0:00:24]} (30... Qxd4 31. Nxa2 Qxc5 32. Rxa4 $18) 31. Rxf3 {[%emt 0:00:02]} Rd2 {[%emt 0:01:42]} 32. Nxa4 {[%emt 0:01:01]} Rxd4 {[%emt 0:01:08]} 33. Rb3 {[%emt 0:00:21]} Rb8 {[%emt 0:01:19]} 34. Nb6 {[%emt 0:07:34]} Bd8 {[%emt 0:00:40]} 35. Re3 {[%emt 0:02:02]} (35. Kg2 {might work better.}) 35... Rd2 {[%emt 0:01:06]} (35... Bxb6 36. cxb6 Rxb6 37. Rxe6 $19) 36. Nd7 $2 {[%emt 0:01:18]} (36. Rxe6 Rxf2+ (36... Bxb6 $2 37. cxb6 Rxf2+ 38. Kg1 $19) 37. Kg1 Bxb6 (37... Ra2 $2 38. Rxa2 fxe6 39. Ra7+ Kg6 40. Nd7 $19) 38. cxb6) 36... Rxf2+ {[%emt 0:04:02]} 37. Kg1 {[%emt 0:00:03]} Rbb2 {[%emt 0:00:13]} 38. Ne5 {[%emt 0:00:14]} Rg2+ {[%emt 0:00:51]} 39. Kh1 {[%emt 0:02:54]} Rh2+ {[%emt 0:01:25]} 40. Kg1 {[%emt 0:00:04]} Rbg2+ {[%emt 0:00:30]} ({Not} 40... Rxh3 41. Rxf7+ Kg8 42. Ra3 $11) 41. Kf1 {[%emt 0:15:01]} Ra2 {[%emt 0:04:48]} (41... Rc2 $142 {[%cal Rh2h1]} 42. Kg1 Rhg2+ (42... Rxh3 43. Rxf7+ Kg8 44. Ra3 $11) 43. Kh1 d4 (43... Rh2+ $2 44. Kg1 $19)) 42. Rxf7+ {[%emt 0:00:00]} (42. Rxa2 $142 Rxa2 43. Nxc6) 42... Kg8 {[%emt 0:00:02]} 43. Kg1 {[%emt 0:00:00] Prevents Rh1+.} Rhb2 {[%emt 0:00:23]} ({Weaker is} 43... Rxh3 44. Rb3 $15) 44. Re1 {[%emt 0:00:00] Wards off Ra1} Ba5 {[%emt 0:00:46]} 45. Rc1 {[%emt 0:00:00]} Bd2 {[%emt 0:01:00] Weighted Error Value: White=0.49/Black=0.29 (precise) .  Mistake:       	White=4     	Black=2      Inaccurate:     	White=5     	Black=2      OK:         	White=10    	Black=17     Best:        	White=1     	Black=1} 0-1

[Event "CIS Master Groups 2024"]
[Site "Vasto"]
[Date "2024.04.11"]
[Round "5.19"]
[White "Basso, Pier Luigi"]
[Black "Garcia Palermo, Carlos Horacio"]
[Result "1-0"]
[ECO "E17"]
[WhiteElo "2507"]
[BlackElo "2407"]
[Annotator "TA"]
[PlyCount "115"]
[EventDate "2024.04.07"]
[EventType "team-tourn"]
[EventCountry "ITA"]
[SourceTitle "playchess.com"]
[Source "ChessBase"]
[SourceQuality "1"]
[TimeControl "40/5400+30:900+30"]

{[%evp 21,115,41,71,71,58,43,109,99,91,95,95,94,107,80,75,75,74,70,72,77,78,66,84,53,95,53,92,31,24,31,31,29,27,25,25,18,135,136,154,151,151,135,127,148,133,124,125,117,129,131,170,116,901,893,837,654,791,804,809,793,786,757,642,695,839,837,29947,29947,29947,29947,29942,29944,29944,12841,12820,1966,5202,9979,9979,7519,5206,5703,2529,2147,29974,29975,29981,29982,29982,29983,29983,29983,29987,29988,29988,29989]} 1. d4 {[%emt 0:14:21]} Nf6 {[%emt 0:01:12]} 2. c4 {[%emt 0:01:19]} e6 {[%emt 0:00:07]} 3. Nf3 {[%emt 0:00:45]} b6 {[%emt 0:01:25]} 4. g3 {[%emt 0:00:13]} Bb7 {[%emt 0:00:34]} 5. Bg2 {[%emt 0:00:10]} Be7 {[%emt 0:01:27]} 6. Nc3 {[%emt 0:01:07]} Ne4 {[%emt 0:01:05]} 7. Bd2 {[%emt 0:00:20]} Nxd2 {[%emt 0:05:26]} 8. Qxd2 {[%emt 0:04:53] E17: Queen's Indian: 4 g3 Bb7 5 Bg2 Be7.} d5 {[%emt 0:00:09]} 9. cxd5 {[%emt 0:05:51]} exd5 {[%emt 0:00:15]} 10. Ne5 {[%emt 0:00:42]} O-O {[%emt 0:03:29]} 11. O-O {[%emt 0:01:24]} a5 $146 {[%emt 0:03:53]} ({Predecessor:} 11... Na6 12. Rad1 c6 13. e4 Nc7 14. exd5 cxd5 15. Rfe1 Bb4 16. a3 Bxc3 17. Qxc3 Qd6 {1-0 Karpov,A (2617)-Huebner,R (2576) Leiden Noteboom 80th rapid 2020 (2)}) 12. Rac1 {[%emt 0:01:58]} Na6 {[%emt 0:00:47]} 13. Rfd1 {[%emt 0:00:12]} Bb4 {[%emt 0:12:23]} (13... Kh8 $14) 14. a3 {[%emt 0:06:49]} Bxc3 {[%emt 0:00:18]} 15. Qxc3 {[%emt 0:01:19]} Qd6 {[%emt 0:01:38]} 16. e3 {[%emt 0:02:50]} f6 {[%emt 0:02:42]} 17. Nc6 {[%emt 0:04:02]} Rf7 {[%emt 0:01:04]} 18. Rc2 {[%emt 0:03:09]} Nb8 {[%emt 0:02:44]} 19. Nxb8 {[%emt 0:01:11]} Rxb8 {[%emt 0:00:05]} 20. Rdc1 {[%emt 0:01:53]} Ra8 {[%emt 0:10:29]} 21. b4 {[%emt 0:03:37]} g6 {[%emt 0:10:38]} 22. Qb3 {[%emt 0:00:53]} Kg7 {[%emt 0:06:33]} 23. Rc3 {[%emt 0:02:42]} Ra7 {[%emt 0:03:05]} 24. Qc2 {[%emt 0:02:00]} ({Better is} 24. b5 $16) 24... axb4 {[%emt 0:01:18]} 25. axb4 {[%emt 0:00:30]} (25. Rxc7 bxa3 (25... Rxa3 $2 26. Rxf7+ Kxf7 27. Qc7+ Qe7 28. Qxb6 $16) 26. Rxf7+ Kxf7 $17) 25... c6 {[%emt 0:00:54]} 26. Qb2 {[%emt 0:03:28]} b5 {[%emt 0:13:55]} 27. Ra3 {[%emt 0:00:12]} Bc8 {[%emt 0:00:58]} 28. Qa2 {[%emt 0:00:59]} Rae7 {[%emt 0:02:00]} (28... Rxa3 $11 {keeps the balance.} 29. Qxa3 f5) 29. Bxd5 $1 $16 {[%emt 0:02:15]} cxd5 {[%emt 0:00:28]} 30. Rxc8 {[%emt 0:00:06]} Qxb4 {[%emt 0:00:18]} 31. Raa8 {[%emt 0:03:20]} Qd6 {[%emt 0:05:46]} 32. Rd8 {[%emt 0:01:52]} Rd7 {[%emt 0:00:27]} 33. Rg8+ {[%emt 0:00:06]} Kh6 {[%emt 0:00:06]} 34. Qe2 {[%emt 0:00:50]} Qe6 {[%emt 0:00:52]} 35. Rge8 {[%emt 0:05:35]} Qf5 {[%emt 0:02:40]} 36. Kg2 {[%emt 0:01:45]} (36. Qxb5 Rb7 37. Qe2 Rfc7 $11) ({White should try} 36. g4 $1 $18 {[%cal Rg4f5]} Qg5 37. h3 (37. Qxb5 $2 Qxg4+ 38. Kh1 Qf3+ 39. Kg1 Rb7 $19)) 36... b4 $2 {[%emt 0:00:58][%mdl 8192]} (36... Ra7 $16) 37. g4 $1 $18 {[%emt 0:02:15]} Qg5 {[%emt 0:02:00]} 38. h4 {[%emt 0:01:03]} Qxh4 {[%emt 0:00:28] [#]} 39. Ra1 $1 {[%emt 0:00:04]} Rb7 {[%emt 0:01:37]} 40. Rh1 {[%emt 0:08:37]} Qxh1+ {[%emt 0:00:07]} 41. Kxh1 {[%emt 0:15:02]} b3 {[%emt 0:15:06]} 42. Qb2 {[%emt 0:00:04]} Rfc7 {[%emt 0:00:12]} 43. Kg2 {[%emt 0:00:07]} Rc2 {[%emt 0:01:36]} 44. Qa3 {[%emt 0:06:40]} b2 {[%emt 0:00:00]} 45. Qf8+ {[%emt 0:00:00]} Kg5 {[%emt 0:00:00] [#]} 46. Re6 $1 {[%emt 0:00:00]} ({Don't blunder} 46. Kh3 $2 Rxf2 $19 (46... b1=B 47. f4#) (46... b1=B 47. f4#)) 46... Rxf2+ {[%emt 0:00:28]} 47. Kxf2 {[%emt 0:00:00]} f5 {[%emt 0:00:07]} 48. Qd8+ {[%emt 0:00:00]} Kxg4 {[%emt 0:00:30]} 49. Rb6 $1 {[%emt 0:00:00]} ({Stronger than} 49. Qxd5 b1=Q 50. Qf3+ Kh4 51. Qg3+ Kh5 52. Qh2+ (52. Qh3+ Kg5 $11) 52... Kg5 53. Qf4+ Kh5 54. Qh2+ Kg4 55. Qg2+ Kh4 56. Qg3+ Kh5 57. Qh2+ $11 (57. Qh3+ Kg5 $11)) 49... b1=Q {[%emt 0:00:18]} 50. Rxb1 {[%emt 0:00:00]} Rxb1 {[%emt 0:00:06]} 51. Qxd5 {[%emt 0:00:00]} Rb2+ {[%emt 0:01:04]} 52. Ke1 {[%emt 0:00:00]} h5 {[%emt 0:01:31]} 53. Qe6 {[%emt 0:00:00]} h4 {[%emt 0:00:22]} 54. Qxg6+ {[%emt 0:00:00]} Kf3 {[%emt 0:00:06]} 55. Qxf5+ {[%emt 0:00:00]} Kxe3 {[%emt 0:00:10]} 56. Qe5+ {[%emt 0:00:00]} Kf3 {[%emt 0:00:27]} 57. d5 {[%emt 0:00:00]} Rb1+ {[%emt 0:00:10]} 58. Kd2 {[%emt 0:00:00]} 1-0